[Event "Titled Tuesday Blitz April 25 Late 2023"]
[White "Bulgurlu, Okan"]
[Black "Seletsky, Grigory"]
[WhiteFideId "6352316"]
[BlackFideId "14112191"]
[WhiteElo "1908"]
[BlackElo "2490"]
[Result "0-1"]
[Round "04"]
[TimeControl "180+2"]
[Date "2023.04.25"]
[WhiteClock "0:00:06"]
[BlackClock "0:00:55"]

1. d4 {[%clk 0:03:00]}  d5 {[%clk 0:02:52]} 2. Bf4 {[%clk 0:02:59]}  Nf6 {[%clk 0:02:49]} 3. Nf3 {[%clk 0:02:58]}  Bf5 {[%clk 0:02:49]} 4. e3 {[%clk 0:02:58]}  e6 {[%clk 0:02:50]} 5. Nbd2 {[%clk 0:02:56]}  Bd6 {[%clk 0:02:50]} 6. Ne5 {[%clk 0:02:13]}  Nfd7 {[%clk 0:02:44]} 7. Ndf3 {[%clk 0:02:04]}  f6 {[%clk 0:02:44]} 8. Nxd7 {[%clk 0:02:04]}  Nxd7 {[%clk 0:02:44]} 9. Bxd6 {[%clk 0:01:53]}  cxd6 {[%clk 0:02:43]} 10. Bd3 {[%clk 0:01:54]}  Be4 {[%clk 0:02:31]} 11. Bxe4 {[%clk 0:01:43]}  dxe4 {[%clk 0:02:30]} 12. Nd2 {[%clk 0:01:43]}  f5 {[%clk 0:02:25]} 13. O-O {[%clk 0:01:29]}  O-O {[%clk 0:02:23]} 14. f3 {[%clk 0:01:20]}  exf3 {[%clk 0:02:19]} 15. Qxf3 {[%clk 0:01:21]}  d5 {[%clk 0:02:19]} 16. c4 {[%clk 0:01:09]}  Nf6 {[%clk 0:02:18]} 17. Rac1 {[%clk 0:01:06]}  Rc8 {[%clk 0:02:11]} 18. cxd5 {[%clk 0:00:58]}  Qxd5 {[%clk 0:02:10]} 19. Qxd5 {[%clk 0:00:56]}  Nxd5 {[%clk 0:02:08]} 20. e4 {[%clk 0:00:56]}  Ne3 {[%clk 0:01:52]} 21. Rfe1 {[%clk 0:00:51]}  Nc2 {[%clk 0:01:50]} 22. Rf1 {[%clk 0:00:25]}  Nxd4 {[%clk 0:01:49]} 23. Rxc8 {[%clk 0:00:25]}  Rxc8 {[%clk 0:01:46]} 24. exf5 {[%clk 0:00:25]}  exf5 {[%clk 0:01:36]} 25. Nf3 {[%clk 0:00:24]}  Nxf3+ {[%clk 0:01:32]} 26. Rxf3 {[%clk 0:00:24]}  Rc1+ {[%clk 0:01:32]} 27. Kf2 {[%clk 0:00:23]}  Rc2+ {[%clk 0:01:33]} 28. Kg3 {[%clk 0:00:22]}  Rxb2 {[%clk 0:01:33]} 29. a3 {[%clk 0:00:17]}  g6 {[%clk 0:01:31]} 30. Kh3 {[%clk 0:00:17]}  a5 {[%clk 0:01:30]} 31. g3 {[%clk 0:00:17]}  a4 {[%clk 0:01:29]} 32. Rf4 {[%clk 0:00:14]}  b5 {[%clk 0:01:29]} 33. Rd4 {[%clk 0:00:14]}  Rb3 {[%clk 0:01:25]} 34. Rd5 {[%clk 0:00:14]}  Kf7 {[%clk 0:01:24]} 35. Rd7+ {[%clk 0:00:13]}  Ke6 {[%clk 0:01:24]} 36. Rb7 {[%clk 0:00:12]}  Kd5 {[%clk 0:01:12]} 37. Kh4 {[%clk 0:00:10]}  Kc6 {[%clk 0:01:11]} 38. Rb8 {[%clk 0:00:08]}  Rxa3 {[%clk 0:01:10]} 39. Kg5 {[%clk 0:00:08]}  Ra2 {[%clk 0:01:08]} 40. h4 {[%clk 0:00:07]}  Rg2 {[%clk 0:01:08]} 41. Kf4 {[%clk 0:00:06]}  a3 {[%clk 0:01:07]} 42. Ra8 {[%clk 0:00:07]}  a2 {[%clk 0:01:06]} 43. Kf3 {[%clk 0:00:08]}  Rc2 {[%clk 0:01:04]} 44. Ke3 {[%clk 0:00:08]}  b4 {[%clk 0:01:04]} 45. Kd3 {[%clk 0:00:08]}  b3 {[%clk 0:01:04]} 46. Rc8+ {[%clk 0:00:08]}  Kb5 {[%clk 0:01:01]} 47. Rb8+ {[%clk 0:00:08]}  Ka4 {[%clk 0:01:01]} 48. Ra8+ {[%clk 0:00:08]}  Kb4 {[%clk 0:01:01]} 49. Ra7 {[%clk 0:00:06]}  Rc1 {[%clk 0:00:58]} 50. Kd2 {[%clk 0:00:06]}  a1=Q {[%clk 0:00:57]} 51. Rb7+ {[%clk 0:00:06]}  Ka3 {[%clk 0:00:55]} 52. Ra7+ {[%clk 0:00:06]}  Kb2 {[%clk 0:00:55]} 0-1


[Site "https://www.chess.com"]

[Event "Titled Tuesday Blitz April 25 Late 2023"]
[White "Garmash, Aliona"]
[Black "Jovic, Stanoje"]
[WhiteFideId "34127620"]
[BlackFideId "905020"]
[WhiteElo "1959"]
[BlackElo "2236"]
[Result "1-0"]
[Round "04"]
[TimeControl "180+2"]
[Date "2023.04.25"]
[WhiteClock "0:00:09"]
[BlackClock "0:00:08"]

1. d4 {[%clk 0:03:00]}  Nf6 {[%clk 0:02:59]} 2. c4 {[%clk 0:03:01]}  e6 {[%clk 0:02:59]} 3. Nf3 {[%clk 0:03:00]}  b6 {[%clk 0:02:58]} 4. g3 {[%clk 0:03:00]}  Ba6 {[%clk 0:02:58]} 5. Qc2 {[%clk 0:02:59]}  d5 {[%clk 0:02:55]} 6. cxd5 {[%clk 0:02:58]}  exd5 {[%clk 0:02:53]} 7. Bg2 {[%clk 0:02:58]}  Bb4+ {[%clk 0:02:48]} 8. Nc3 {[%clk 0:02:48]}  O-O {[%clk 0:02:46]} 9. O-O {[%clk 0:02:47]}  Re8 {[%clk 0:02:46]} 10. Re1 {[%clk 0:02:46]}  c5 {[%clk 0:02:45]} 11. Bd2 {[%clk 0:02:21]}  Nc6 {[%clk 0:02:42]} 12. dxc5 {[%clk 0:02:08]}  bxc5 {[%clk 0:02:41]} 13. a3 {[%clk 0:01:39]}  Bxc3 {[%clk 0:02:31]} 14. Bxc3 {[%clk 0:01:39]}  d4 {[%clk 0:02:31]} 15. Bd2 {[%clk 0:01:39]}  c4 {[%clk 0:02:18]} 16. Qa4 {[%clk 0:01:30]}  Qb6 {[%clk 0:02:07]} 17. Bf4 {[%clk 0:01:21]}  Bb5 {[%clk 0:02:03]} 18. Qc2 {[%clk 0:01:19]}  Rad8 {[%clk 0:01:47]} 19. Nd2 {[%clk 0:01:03]}  Rxe2 {[%clk 0:01:38]} 20. Rxe2 {[%clk 0:00:44]}  d3 {[%clk 0:01:36]} 21. Nxc4 {[%clk 0:00:27]}  dxc2 {[%clk 0:01:32]} 22. Nxb6 {[%clk 0:00:27]}  Rd1+ {[%clk 0:01:30]} 23. Re1 {[%clk 0:00:26]}  Rxa1 {[%clk 0:01:23]} 24. Rxa1 {[%clk 0:00:26]}  axb6 {[%clk 0:01:22]} 25. Bxc6 {[%clk 0:00:19]}  Bxc6 {[%clk 0:01:19]} 26. Re1 {[%clk 0:00:18]}  h6 {[%clk 0:01:11]} 27. Bc1 {[%clk 0:00:15]}  g5 {[%clk 0:00:56]} 28. Re3 {[%clk 0:00:15]}  Kh7 {[%clk 0:00:47]} 29. Rc3 {[%clk 0:00:15]}  Be4 {[%clk 0:00:47]} 30. f3 {[%clk 0:00:15]}  Bg6 {[%clk 0:00:45]} 31. Kf2 {[%clk 0:00:15]}  Nd5 {[%clk 0:00:44]} 32. Rc6 {[%clk 0:00:15]}  b5 {[%clk 0:00:43]} 33. Rc5 {[%clk 0:00:14]}  Nb6 {[%clk 0:00:27]} 34. Rxb5 {[%clk 0:00:14]}  Nc4 {[%clk 0:00:27]} 35. Rc5 {[%clk 0:00:13]}  Nb6 {[%clk 0:00:25]} 36. b3 {[%clk 0:00:13]}  Nd7 {[%clk 0:00:25]} 37. Rc3 {[%clk 0:00:12]}  Nb6 {[%clk 0:00:22]} 38. a4 {[%clk 0:00:12]}  Nd5 {[%clk 0:00:22]} 39. Rc4 {[%clk 0:00:12]}  Nb6 {[%clk 0:00:19]} 40. Rd4 {[%clk 0:00:12]}  Na8 {[%clk 0:00:17]} 41. a5 {[%clk 0:00:12]}  Nc7 {[%clk 0:00:18]} 42. Rd6 {[%clk 0:00:11]}  Nb5 {[%clk 0:00:17]} 43. Rb6 {[%clk 0:00:10]}  Nc3 {[%clk 0:00:14]} 44. a6 {[%clk 0:00:11]}  Na2 {[%clk 0:00:15]} 45. Bd2 {[%clk 0:00:11]}  c1=Q {[%clk 0:00:14]} 46. Bxc1 {[%clk 0:00:11]}  Nxc1 {[%clk 0:00:14]} 47. a7 {[%clk 0:00:11]}  Nd3+ {[%clk 0:00:15]} 48. Ke3 {[%clk 0:00:11]}  Ne1 {[%clk 0:00:13]} 49. a8=Q {[%clk 0:00:11]}  Nc2+ {[%clk 0:00:14]} 50. Kd2 {[%clk 0:00:10]}  Nd4 {[%clk 0:00:14]} 51. Rb8 {[%clk 0:00:10]}  h5 {[%clk 0:00:11]} 52. Rh8+ {[%clk 0:00:10]}  Kg7 {[%clk 0:00:11]} 53. Qf8+ {[%clk 0:00:09]}  Kf6 {[%clk 0:00:11]} 54. Qd6+ {[%clk 0:00:09]}  Ne6 {[%clk 0:00:11]} 55. b4 {[%clk 0:00:09]}  g4 {[%clk 0:00:11]} 56. fxg4 {[%clk 0:00:09]}  hxg4 {[%clk 0:00:09]} 57. Re8 {[%clk 0:00:09]}  Kf5 {[%clk 0:00:08]} 58. Rxe6 {[%clk 0:00:09]}  fxe6 {[%clk 0:00:08]} 59. Qf4# {[%clk 0:00:09]} 1-0


[Site "https://www.chess.com"]

[Event "Titled Tuesday Blitz April 25 Late 2023"]
[White "Stanisz, Patryk"]
[Black "Le Goff, Ronan"]
[WhiteFideId "1123106"]
[BlackFideId "612073"]
[WhiteElo "2069"]
[BlackElo "2275"]
[Result "0-1"]
[Round "04"]
[TimeControl "180+2"]
[Date "2023.04.25"]
[WhiteClock "0:00:08"]
[BlackClock "0:00:15"]

1. d4 {[%clk 0:03:00]}  Nf6 {[%clk 0:02:24]} 2. c4 {[%clk 0:03:00]}  e6 {[%clk 0:02:19]} 3. Nc3 {[%clk 0:03:00]}  Bb4 {[%clk 0:02:16]} 4. e3 {[%clk 0:03:01]}  O-O {[%clk 0:02:14]} 5. Ne2 {[%clk 0:03:01]}  c6 {[%clk 0:02:12]} 6. a3 {[%clk 0:03:01]}  Ba5 {[%clk 0:02:11]} 7. b4 {[%clk 0:03:00]}  Bc7 {[%clk 0:02:12]} 8. Ng3 {[%clk 0:03:01]}  d5 {[%clk 0:02:12]} 9. Bb2 {[%clk 0:02:56]}  a5 {[%clk 0:02:09]} 10. b5 {[%clk 0:02:51]}  e5 {[%clk 0:01:55]} 11. cxd5 {[%clk 0:02:48]}  cxd5 {[%clk 0:01:46]} 12. dxe5 {[%clk 0:02:46]}  Bxe5 {[%clk 0:01:46]} 13. Be2 {[%clk 0:02:26]}  Be6 {[%clk 0:01:40]} 14. O-O {[%clk 0:02:25]}  Nbd7 {[%clk 0:01:40]} 15. Na4 {[%clk 0:02:04]}  Bd6 {[%clk 0:01:29]} 16. Bd3 {[%clk 0:01:50]}  Ng4 {[%clk 0:01:17]} 17. h3 {[%clk 0:01:36]}  Bxg3 {[%clk 0:01:01]} 18. fxg3 {[%clk 0:01:22]}  Nxe3 {[%clk 0:00:59]} 19. Qh5 {[%clk 0:01:22]}  h6 {[%clk 0:00:47]} 20. Rf3 {[%clk 0:01:10]}  Nc4 {[%clk 0:00:40]} 21. Bd4 {[%clk 0:00:59]}  Qg5 {[%clk 0:00:33]} 22. Qxg5 {[%clk 0:00:51]}  hxg5 {[%clk 0:00:34]} 23. g4 {[%clk 0:00:28]}  Nde5 {[%clk 0:00:31]} 24. Bxc4 {[%clk 0:00:22]}  Nxf3+ {[%clk 0:00:28]} 25. gxf3 {[%clk 0:00:23]}  dxc4 {[%clk 0:00:28]} 26. Nc5 {[%clk 0:00:19]}  Bd5 {[%clk 0:00:24]} 27. Kf2 {[%clk 0:00:19]}  Rfe8 {[%clk 0:00:24]} 28. Rc1 {[%clk 0:00:16]}  Rad8 {[%clk 0:00:23]} 29. Be3 {[%clk 0:00:15]}  b6 {[%clk 0:00:22]} 30. Na4 {[%clk 0:00:16]}  Bb7 {[%clk 0:00:14]} 31. Nxb6 {[%clk 0:00:13]}  Rd3 {[%clk 0:00:15]} 32. Nxc4 {[%clk 0:00:11]}  Bd5 {[%clk 0:00:15]} 33. Bxg5 {[%clk 0:00:08]}  Rc8 {[%clk 0:00:13]} 34. b6 {[%clk 0:00:08]}  Rxc4 {[%clk 0:00:11]} 35. Rxc4 {[%clk 0:00:05]}  Bxc4 {[%clk 0:00:12]} 36. Be7 {[%clk 0:00:03]}  Rd7 {[%clk 0:00:11]} 37. Bc5 {[%clk 0:00:02]}  Ba6 {[%clk 0:00:11]} 38. Ke3 {[%clk 0:00:02]}  Bb7 {[%clk 0:00:11]} 39. f4 {[%clk 0:00:02]}  f6 {[%clk 0:00:11]} 40. f5 {[%clk 0:00:02]}  Kf7 {[%clk 0:00:12]} 41. a4 {[%clk 0:00:02]}  Rd5 {[%clk 0:00:12]} 42. h4 {[%clk 0:00:03]}  Rxc5 {[%clk 0:00:11]} 43. g5 {[%clk 0:00:03]}  fxg5 {[%clk 0:00:11]} 44. h5 {[%clk 0:00:04]}  Rxf5 {[%clk 0:00:11]} 45. h6 {[%clk 0:00:04]}  gxh6 {[%clk 0:00:12]} 46. Kd4 {[%clk 0:00:05]}  Rd5+ {[%clk 0:00:12]} 47. Kc4 {[%clk 0:00:05]}  Ke6 {[%clk 0:00:13]} 48. Kc3 {[%clk 0:00:05]}  Kd6 {[%clk 0:00:13]} 49. Kc4 {[%clk 0:00:06]}  Kc6 {[%clk 0:00:14]} 50. Kc3 {[%clk 0:00:06]}  Kxb6 {[%clk 0:00:15]} 51. Kb3 {[%clk 0:00:07]}  Kc6 {[%clk 0:00:15]} 52. Ka3 {[%clk 0:00:08]}  Rf5 {[%clk 0:00:15]} 0-1


[Site "https://www.chess.com"]

[Event "Titled Tuesday Blitz April 25 Late 2023"]
[White "Rottenwohrer Suarez, Juan"]
[Black "Antonova, Nadezhda"]
[WhiteFideId "32068182"]
[BlackFideId "14700182"]
[WhiteElo "2174"]
[BlackElo "1765"]
[Result "0-1"]
[Round "04"]
[TimeControl "180+2"]
[Date "2023.04.25"]
[WhiteClock "0:00:02"]
[BlackClock "0:00:19"]

1. c4 {[%clk 0:03:00]}  Nf6 {[%clk 0:02:59]} 2. d4 {[%clk 0:03:00]}  g6 {[%clk 0:03:00]} 3. Nc3 {[%clk 0:02:55]}  Bg7 {[%clk 0:03:00]} 4. e4 {[%clk 0:02:52]}  d6 {[%clk 0:03:01]} 5. Be2 {[%clk 0:02:51]}  O-O {[%clk 0:03:01]} 6. Be3 {[%clk 0:02:51]}  Na6 {[%clk 0:02:58]} 7. h4 {[%clk 0:02:38]}  h5 {[%clk 0:02:55]} 8. f3 {[%clk 0:02:25]}  c5 {[%clk 0:02:54]} 9. d5 {[%clk 0:02:21]}  e6 {[%clk 0:02:54]} 10. Nh3 {[%clk 0:02:18]}  exd5 {[%clk 0:02:53]} 11. cxd5 {[%clk 0:02:18]}  Nc7 {[%clk 0:02:50]} 12. a4 {[%clk 0:02:13]}  b6 {[%clk 0:02:48]} 13. Nf2 {[%clk 0:02:10]}  a6 {[%clk 0:02:44]} 14. g4 {[%clk 0:01:59]}  Bd7 {[%clk 0:02:44]} 15. f4 {[%clk 0:01:31]}  hxg4 {[%clk 0:02:14]} 16. Nxg4 {[%clk 0:01:31]}  Nh5 {[%clk 0:02:11]} 17. Kf2 {[%clk 0:01:22]}  b5 {[%clk 0:02:10]} 18. axb5 {[%clk 0:01:08]}  axb5 {[%clk 0:02:10]} 19. Rxa8 {[%clk 0:01:09]}  Qxa8 {[%clk 0:02:10]} 20. f5 {[%clk 0:01:06]}  b4 {[%clk 0:02:00]} 21. Nh6+ {[%clk 0:00:53]}  Kh7 {[%clk 0:01:55]} 22. Bxh5 {[%clk 0:00:47]}  Bxh6 {[%clk 0:01:55]} 23. Nb1 {[%clk 0:00:35]}  Qa2 {[%clk 0:01:50]} 24. Bxh6 {[%clk 0:00:31]}  Kxh6 {[%clk 0:01:49]} 25. Be2 {[%clk 0:00:29]}  Qxb2 {[%clk 0:01:45]} 26. Qd3 {[%clk 0:00:23]}  Bb5 {[%clk 0:01:21]} 27. Qe3+ {[%clk 0:00:23]}  Kg7 {[%clk 0:01:19]} 28. Nd2 {[%clk 0:00:23]}  Bxe2 {[%clk 0:01:14]} 29. Kxe2 {[%clk 0:00:24]}  Re8 {[%clk 0:01:08]} 30. h5 {[%clk 0:00:23]}  Nxd5 {[%clk 0:01:05]} 31. Qg5 {[%clk 0:00:13]}  Nc3+ {[%clk 0:01:01]} 32. Kd3 {[%clk 0:00:10]}  Nxe4 {[%clk 0:00:43]} 33. Nxe4 {[%clk 0:00:06]}  Qd4+ {[%clk 0:00:42]} 34. Ke2 {[%clk 0:00:01]}  Qxe4+ {[%clk 0:00:43]} 35. Kf2 {[%clk 0:00:01]}  Qxh1 {[%clk 0:00:41]} 36. f6+ {[%clk 0:00:01]}  Kh7 {[%clk 0:00:25]} 37. hxg6+ {[%clk 0:00:01]}  fxg6 {[%clk 0:00:25]} 38. f7 {[%clk 0:00:02]}  Qe1+ {[%clk 0:00:24]} 39. Kf3 {[%clk 0:00:02]}  Qe2+ {[%clk 0:00:22]} 40. Kg3 {[%clk 0:00:02]}  Re3+ {[%clk 0:00:20]} 41. Kh4 {[%clk 0:00:02]}  Qh2+ {[%clk 0:00:19]} 0-1


[Site "https://www.chess.com"]

[Event "Titled Tuesday Blitz April 25 Late 2023"]
[White "Osmonbekov, Talaibek"]
[Black "Melikhov, Evgeny V."]
[WhiteFideId "2017253"]
[BlackFideId "4122046"]
[WhiteElo "2135"]
[BlackElo "2158"]
[Result "1/2-1/2"]
[Round "04"]
[TimeControl "180+2"]
[Date "2023.04.25"]
[WhiteClock "0:00:14"]
[BlackClock "0:00:19"]

1. d4 {[%clk 0:03:00]}  Nf6 {[%clk 0:02:59]} 2. Bf4 {[%clk 0:03:01]}  d5 {[%clk 0:02:59]} 3. Nc3 {[%clk 0:03:02]}  c5 {[%clk 0:02:57]} 4. e3 {[%clk 0:03:02]}  cxd4 {[%clk 0:02:57]} 5. exd4 {[%clk 0:03:02]}  a6 {[%clk 0:02:57]} 6. Nf3 {[%clk 0:03:02]}  Bg4 {[%clk 0:02:55]} 7. h3 {[%clk 0:03:02]}  Bxf3 {[%clk 0:02:55]} 8. Qxf3 {[%clk 0:03:03]}  e6 {[%clk 0:02:53]} 9. O-O-O {[%clk 0:03:00]}  Nc6 {[%clk 0:02:52]} 10. g4 {[%clk 0:02:59]}  Bd6 {[%clk 0:02:50]} 11. g5 {[%clk 0:02:54]}  Bxf4+ {[%clk 0:02:49]} 12. Qxf4 {[%clk 0:02:53]}  Nh5 {[%clk 0:02:50]} 13. Qg4 {[%clk 0:02:46]}  g6 {[%clk 0:02:50]} 14. h4 {[%clk 0:02:44]}  Qd6 {[%clk 0:02:48]} 15. Bh3 {[%clk 0:02:08]}  Qf4+ {[%clk 0:02:44]} 16. Qxf4 {[%clk 0:02:07]}  Nxf4 {[%clk 0:02:44]} 17. Bg4 {[%clk 0:02:08]}  h6 {[%clk 0:02:36]} 18. Bf3 {[%clk 0:01:37]}  Ke7 {[%clk 0:02:26]} 19. Na4 {[%clk 0:01:31]}  b5 {[%clk 0:02:20]} 20. Nc5 {[%clk 0:01:31]}  Kd6 {[%clk 0:02:18]} 21. c3 {[%clk 0:01:30]}  a5 {[%clk 0:02:09]} 22. b3 {[%clk 0:01:19]}  Kc7 {[%clk 0:01:45]} 23. Kd2 {[%clk 0:01:18]}  Nh5 {[%clk 0:01:13]} 24. Bxh5 {[%clk 0:01:04]}  gxh5 {[%clk 0:01:13]} 25. Rhg1 {[%clk 0:01:00]}  hxg5 {[%clk 0:01:12]} 26. Rxg5 {[%clk 0:00:59]}  Rag8 {[%clk 0:01:08]} 27. Rdg1 {[%clk 0:00:59]}  Ne7 {[%clk 0:01:08]} 28. Rxg8 {[%clk 0:00:21]}  Rxg8 {[%clk 0:01:07]} 29. Rxg8 {[%clk 0:00:22]}  Nxg8 {[%clk 0:01:07]} 30. Ke3 {[%clk 0:00:22]}  Nf6 {[%clk 0:00:44]} 31. Kf4 {[%clk 0:00:22]}  b4 {[%clk 0:00:36]} 32. cxb4 {[%clk 0:00:20]}  axb4 {[%clk 0:00:35]} 33. Na6+ {[%clk 0:00:21]}  Kd6 {[%clk 0:00:34]} 34. Nxb4 {[%clk 0:00:22]}  Ne4 {[%clk 0:00:32]} 35. f3 {[%clk 0:00:21]}  Nd2 {[%clk 0:00:30]} 36. Nd3 {[%clk 0:00:19]}  f6 {[%clk 0:00:29]} 37. Nc5 {[%clk 0:00:18]}  e5+ {[%clk 0:00:29]} 38. Kf5 {[%clk 0:00:18]}  Nxf3 {[%clk 0:00:21]} 39. Kxf6 {[%clk 0:00:13]}  Nxd4 {[%clk 0:00:18]} 40. Nb7+ {[%clk 0:00:10]}  Kc7 {[%clk 0:00:18]} 41. Kxe5 {[%clk 0:00:10]}  Nc6+ {[%clk 0:00:19]} 42. Kxd5 {[%clk 0:00:10]}  Kxb7 {[%clk 0:00:19]} 43. Ke4 {[%clk 0:00:10]}  Nb4 {[%clk 0:00:18]} 44. Kf5 {[%clk 0:00:10]}  Nxa2 {[%clk 0:00:18]} 45. Kg5 {[%clk 0:00:11]}  Nc3 {[%clk 0:00:17]} 46. Kxh5 {[%clk 0:00:11]}  Ne4 {[%clk 0:00:18]} 47. Kg6 {[%clk 0:00:12]}  Ng3 {[%clk 0:00:18]} 48. h5 {[%clk 0:00:11]}  Nxh5 {[%clk 0:00:17]} 49. Kxh5 {[%clk 0:00:12]}  Kb6 {[%clk 0:00:17]} 50. Kg4 {[%clk 0:00:13]}  Kb5 {[%clk 0:00:18]} 51. Kf3 {[%clk 0:00:14]}  Kb4 {[%clk 0:00:18]} 52. Ke2 {[%clk 0:00:14]}  Kxb3 {[%clk 0:00:19]} 1/2-1/2


[Site "https://www.chess.com"]

[Event "Titled Tuesday Blitz April 25 Late 2023"]
[White "Olsson, William"]
[Black "Oliveira, Tiago Batista"]
[WhiteFideId "1741721"]
[BlackFideId "2108291"]
[WhiteElo "2197"]
[BlackElo "1962"]
[Result "1-0"]
[Round "04"]
[TimeControl "180+2"]
[Date "2023.04.25"]
[WhiteClock "0:00:16"]
[BlackClock "0:00:05"]

1. c4 {[%clk 0:02:58]}  Nf6 {[%clk 0:02:56]} 2. g3 {[%clk 0:02:56]}  g6 {[%clk 0:02:55]} 3. Bg2 {[%clk 0:02:56]}  Bg7 {[%clk 0:02:55]} 4. Nc3 {[%clk 0:02:57]}  c5 {[%clk 0:02:55]} 5. Nf3 {[%clk 0:02:58]}  O-O {[%clk 0:02:55]} 6. O-O {[%clk 0:02:59]}  Nc6 {[%clk 0:02:55]} 7. a3 {[%clk 0:02:59]}  d6 {[%clk 0:02:51]} 8. Rb1 {[%clk 0:02:59]}  Rb8 {[%clk 0:02:29]} 9. b4 {[%clk 0:02:58]}  cxb4 {[%clk 0:02:27]} 10. axb4 {[%clk 0:02:59]}  Ne8 {[%clk 0:02:14]} 11. d4 {[%clk 0:02:57]}  a5 {[%clk 0:02:04]} 12. b5 {[%clk 0:02:55]}  Nb4 {[%clk 0:02:04]} 13. Ba3 {[%clk 0:02:54]}  Be6 {[%clk 0:01:32]} 14. Bxb4 {[%clk 0:02:47]}  axb4 {[%clk 0:01:32]} 15. Rxb4 {[%clk 0:02:47]}  Qa5 {[%clk 0:01:24]} 16. Qb3 {[%clk 0:02:46]}  Rc8 {[%clk 0:01:19]} 17. b6 {[%clk 0:01:52]}  Qa6 {[%clk 0:00:48]} 18. Ra4 {[%clk 0:01:14]}  Bxc4 {[%clk 0:00:46]} 19. Qb4 {[%clk 0:01:10]}  Bxe2 {[%clk 0:00:23]} 20. Rxa6 {[%clk 0:01:10]}  Bxa6 {[%clk 0:00:23]} 21. Nd5 {[%clk 0:00:58]}  Bf6 {[%clk 0:00:19]} 22. Ra1 {[%clk 0:00:54]}  Rc4 {[%clk 0:00:16]} 23. Nxf6+ {[%clk 0:00:47]}  Nxf6 {[%clk 0:00:15]} 24. Qb3 {[%clk 0:00:47]}  Rfc8 {[%clk 0:00:11]} 25. Qe3 {[%clk 0:00:41]}  Nd5 {[%clk 0:00:10]} 26. Qe1 {[%clk 0:00:40]}  Nb4 {[%clk 0:00:09]} 27. Bf1 {[%clk 0:00:35]}  Nc2 {[%clk 0:00:08]} 28. Qd1 {[%clk 0:00:25]}  Rc3 {[%clk 0:00:05]} 29. Bxa6 {[%clk 0:00:16]} 1-0


[Site "https://www.chess.com"]

[Event "Titled Tuesday Blitz April 25 Late 2023"]
[White "Toma, Katarzyna"]
[Black "Dzida, Kamil"]
[WhiteFideId "1119907"]
[BlackFideId "21828652"]
[WhiteElo "2149"]
[BlackElo "2139"]
[Result "0-1"]
[Round "04"]
[TimeControl "180+2"]
[Date "2023.04.25"]
[WhiteClock "0:00:04"]
[BlackClock "0:01:15"]

1. d4 {[%clk 0:03:00]}  Nf6 {[%clk 0:02:59]} 2. Nf3 {[%clk 0:02:53]}  e6 {[%clk 0:03:00]} 3. Bg5 {[%clk 0:02:51]}  b6 {[%clk 0:02:55]} 4. Nc3 {[%clk 0:02:50]}  Bb7 {[%clk 0:02:55]} 5. Qd2 {[%clk 0:02:47]}  Bb4 {[%clk 0:02:55]} 6. a3 {[%clk 0:02:39]}  Bxc3 {[%clk 0:02:54]} 7. Qxc3 {[%clk 0:02:36]}  d6 {[%clk 0:02:54]} 8. e3 {[%clk 0:02:32]}  Nbd7 {[%clk 0:02:55]} 9. Bd3 {[%clk 0:02:24]}  h6 {[%clk 0:02:53]} 10. Bxf6 {[%clk 0:02:17]}  Nxf6 {[%clk 0:02:53]} 11. O-O-O {[%clk 0:02:12]}  Qe7 {[%clk 0:02:52]} 12. Rhg1 {[%clk 0:02:07]}  O-O-O {[%clk 0:02:41]} 13. Nd2 {[%clk 0:01:53]}  Ng8 {[%clk 0:02:40]} 14. a4 {[%clk 0:01:46]}  a5 {[%clk 0:02:38]} 15. Be4 {[%clk 0:01:33]}  Nf6 {[%clk 0:02:36]} 16. Bxb7+ {[%clk 0:01:31]}  Kxb7 {[%clk 0:02:37]} 17. Qb3 {[%clk 0:01:26]}  d5 {[%clk 0:02:35]} 18. Kb1 {[%clk 0:01:24]}  Qb4 {[%clk 0:02:32]} 19. Qxb4 {[%clk 0:01:16]}  axb4 {[%clk 0:02:30]} 20. Nb3 {[%clk 0:01:16]}  Ra8 {[%clk 0:02:26]} 21. a5 {[%clk 0:01:13]}  bxa5 {[%clk 0:02:09]} 22. Nc5+ {[%clk 0:01:13]}  Kc6 {[%clk 0:02:09]} 23. c3 {[%clk 0:01:06]}  Rhb8 {[%clk 0:02:07]} 24. Kc2 {[%clk 0:01:03]}  Nd7 {[%clk 0:02:07]} 25. cxb4 {[%clk 0:00:53]}  axb4 {[%clk 0:02:05]} 26. Nb3 {[%clk 0:00:51]}  Kb5 {[%clk 0:02:04]} 27. Rc1 {[%clk 0:00:50]}  c5 {[%clk 0:01:55]} 28. dxc5 {[%clk 0:00:49]}  Nxc5 {[%clk 0:01:56]} 29. Nxc5 {[%clk 0:00:48]}  Kxc5 {[%clk 0:01:56]} 30. Kb3+ {[%clk 0:00:48]}  Kb6 {[%clk 0:01:56]} 31. Kxb4 {[%clk 0:00:45]}  Ka6+ {[%clk 0:01:50]} 32. Kc3 {[%clk 0:00:44]}  Rc8+ {[%clk 0:01:49]} 33. Kd2 {[%clk 0:00:44]}  Kb5 {[%clk 0:01:47]} 34. Rxc8 {[%clk 0:00:38]}  Rxc8 {[%clk 0:01:46]} 35. Ra1 {[%clk 0:00:38]}  Rc7 {[%clk 0:01:46]} 36. Ra3 {[%clk 0:00:36]}  Kb4 {[%clk 0:01:46]} 37. f3 {[%clk 0:00:34]}  f5 {[%clk 0:01:38]} 38. f4 {[%clk 0:00:30]}  g5 {[%clk 0:01:35]} 39. fxg5 {[%clk 0:00:25]}  hxg5 {[%clk 0:01:35]} 40. h3 {[%clk 0:00:25]}  Rc6 {[%clk 0:01:32]} 41. Ra7 {[%clk 0:00:22]}  Rb6 {[%clk 0:01:28]} 42. Ra3 {[%clk 0:00:19]}  e5 {[%clk 0:01:22]} 43. Kc2 {[%clk 0:00:16]}  Rc6+ {[%clk 0:01:21]} 44. Kd2 {[%clk 0:00:15]}  f4 {[%clk 0:01:20]} 45. exf4 {[%clk 0:00:13]}  gxf4 {[%clk 0:01:21]} 46. Ra7 {[%clk 0:00:09]}  Rg6 {[%clk 0:01:18]} 47. Rb7+ {[%clk 0:00:07]}  Kc5 {[%clk 0:01:15]} 48. Kd3 {[%clk 0:00:04]}  Rg3+ {[%clk 0:01:15]} 0-1


[Site "https://www.chess.com"]